[Event "Titled Tuesday Blitz November 14 Late 2023"]
[White "Sivanandan, Bodhana"]
[Black "Ballester Llagaria, Luis Eduardo"]
[WhiteFideId "497592"]
[BlackFideId "2297620"]
[WhiteElo "2179"]
[BlackElo "2488"]
[Result "1-0"]
[Round "6"]
[TimeControl "180+1"]
[Date "2023.11.14"]
[WhiteClock "0:00:08"]
[BlackClock "0:00:08"]
[Board "108"]

1. d4 {[%clk 0:02:59]}  e6 {[%clk 0:02:58]} 2. Nf3 {[%clk 0:02:59]}  c5 {[%clk 0:02:57]} 3. e3 {[%clk 0:02:58]}  Nf6 {[%clk 0:02:57]} 4. Nc3 {[%clk 0:02:50]}  d5 {[%clk 0:02:55]} 5. Be2 {[%clk 0:02:44]}  Nc6 {[%clk 0:02:55]} 6. O-O {[%clk 0:02:43]}  Bd6 {[%clk 0:02:56]} 7. dxc5 {[%clk 0:02:41]}  Bxc5 {[%clk 0:02:57]} 8. Nd4 {[%clk 0:02:36]}  e5 {[%clk 0:02:55]} 9. Nb3 {[%clk 0:02:34]}  Be7 {[%clk 0:02:52]} 10. Bf3 {[%clk 0:02:29]}  Be6 {[%clk 0:02:52]} 11. e4 {[%clk 0:02:28]}  dxe4 {[%clk 0:02:48]} 12. Nxe4 {[%clk 0:02:27]}  Nxe4 {[%clk 0:02:49]} 13. Bxe4 {[%clk 0:02:26]}  Qc7 {[%clk 0:02:48]} 14. c3 {[%clk 0:02:21]}  O-O {[%clk 0:02:47]} 15. Qf3 {[%clk 0:02:16]}  Rad8 {[%clk 0:02:46]} 16. Be3 {[%clk 0:02:10]}  f5 {[%clk 0:02:46]} 17. Bxc6 {[%clk 0:02:10]}  bxc6 {[%clk 0:02:47]} 18. Bc5 {[%clk 0:01:57]}  Bd5 {[%clk 0:02:32]} 19. Qe3 {[%clk 0:01:50]}  f4 {[%clk 0:02:22]} 20. Qh3 {[%clk 0:01:38]}  Rf6 {[%clk 0:02:16]} 21. Bxe7 {[%clk 0:01:36]}  Qxe7 {[%clk 0:02:17]} 22. f3 {[%clk 0:01:27]}  Rh6 {[%clk 0:02:14]} 23. Qf5 {[%clk 0:01:24]}  Rf6 {[%clk 0:02:02]} 24. Qc2 {[%clk 0:01:21]}  Rg6 {[%clk 0:01:49]} 25. c4 {[%clk 0:01:15]}  Be6 {[%clk 0:01:46]} 26. Rfe1 {[%clk 0:01:15]}  Bh3 {[%clk 0:01:45]} 27. Re2 {[%clk 0:01:11]}  a5 {[%clk 0:01:37]} 28. c5 {[%clk 0:01:02]}  a4 {[%clk 0:01:34]} 29. Nd2 {[%clk 0:01:02]}  Qd7 {[%clk 0:01:09]} 30. Ne4 {[%clk 0:00:55]}  Bf5 {[%clk 0:01:05]} 31. Qxa4 {[%clk 0:00:41]}  Bxe4 {[%clk 0:00:58]} 32. Qxe4 {[%clk 0:00:39]}  Rg5 {[%clk 0:00:50]} 33. a4 {[%clk 0:00:34]}  h5 {[%clk 0:00:50]} 34. h4 {[%clk 0:00:32]}  Rg3 {[%clk 0:00:44]} 35. a5 {[%clk 0:00:31]}  Qa7 {[%clk 0:00:33]} 36. Qxe5 {[%clk 0:00:30]}  Rd5 {[%clk 0:00:33]} 37. Qe6+ {[%clk 0:00:29]}  Kh7 {[%clk 0:00:33]} 38. b4 {[%clk 0:00:28]}  Qa6 {[%clk 0:00:28]} 39. Qe4+ {[%clk 0:00:25]}  Rg6 {[%clk 0:00:26]} 40. Rae1 {[%clk 0:00:24]}  Qb7 {[%clk 0:00:14]} 41. Qxf4 {[%clk 0:00:23]}  Qd7 {[%clk 0:00:14]} 42. Qh2 {[%clk 0:00:18]}  Rd4 {[%clk 0:00:14]} 43. Re7 {[%clk 0:00:16]}  Qd5 {[%clk 0:00:13]} 44. R7e5 {[%clk 0:00:14]}  Qa2 {[%clk 0:00:08]} 45. Rxh5+ {[%clk 0:00:13]}  Kg8 {[%clk 0:00:09]} 46. Rg5 {[%clk 0:00:10]}  Rf6 {[%clk 0:00:07]} 47. Qe5 {[%clk 0:00:08]}  Rd2 {[%clk 0:00:07]} 48. Qe8+ {[%clk 0:00:08]}  Kh7 {[%clk 0:00:08]} 49. Rh5+ {[%clk 0:00:09]}  Rh6 {[%clk 0:00:07]} 50. Rxh6+ {[%clk 0:00:09]}  Kxh6 {[%clk 0:00:08]} 51. Qe3+ {[%clk 0:00:09]}  Kh7 {[%clk 0:00:09]} 52. Qe4+ {[%clk 0:00:09]}  Kh8 {[%clk 0:00:07]} 53. Qg4 {[%clk 0:00:09]}  Kh7 {[%clk 0:00:08]} 54. Qh5+ {[%clk 0:00:08]}  Kg8 {[%clk 0:00:08]} 55. Re8# {[%clk 0:00:08]} 1-0


[Site "https://www.chess.com"]

[Event "Titled Tuesday Blitz November 14 Late 2023"]
[White "Kuegel, Tobias"]
[Black "Djordjevic, Dejan N"]
[WhiteFideId "4636295"]
[BlackFideId "913316"]
[WhiteElo "2456"]
[BlackElo "2051"]
[Result "0-1"]
[Round "6"]
[TimeControl "180+1"]
[Date "2023.11.14"]
[WhiteClock "0:00:07"]
[BlackClock "0:00:07"]
[Board "110"]

1. e4 {[%clk 0:03:00]}  c5 {[%clk 0:02:59]} 2. Nf3 {[%clk 0:03:00]}  Nc6 {[%clk 0:02:59]} 3. d4 {[%clk 0:03:00]}  cxd4 {[%clk 0:02:59]} 4. Nxd4 {[%clk 0:03:01]}  Nf6 {[%clk 0:02:59]} 5. Nc3 {[%clk 0:03:01]}  Qb6 {[%clk 0:02:58]} 6. Nb3 {[%clk 0:02:59]}  e6 {[%clk 0:02:58]} 7. Be3 {[%clk 0:02:56]}  Qc7 {[%clk 0:02:58]} 8. Bd3 {[%clk 0:02:53]}  a6 {[%clk 0:02:58]} 9. f4 {[%clk 0:02:50]}  d6 {[%clk 0:02:58]} 10. g4 {[%clk 0:02:44]}  b5 {[%clk 0:02:57]} 11. g5 {[%clk 0:02:43]}  Nd7 {[%clk 0:02:57]} 12. Qe2 {[%clk 0:02:28]}  Be7 {[%clk 0:02:56]} 13. O-O-O {[%clk 0:02:26]}  Nb6 {[%clk 0:02:33]} 14. Kb1 {[%clk 0:02:02]}  b4 {[%clk 0:02:32]} 15. Bxb6 {[%clk 0:01:55]}  Qxb6 {[%clk 0:02:32]} 16. Na4 {[%clk 0:01:55]}  Qc7 {[%clk 0:02:27]} 17. h4 {[%clk 0:01:46]}  Bb7 {[%clk 0:02:19]} 18. h5 {[%clk 0:01:43]}  e5 {[%clk 0:02:18]} 19. g6 {[%clk 0:01:39]}  fxg6 {[%clk 0:01:58]} 20. hxg6 {[%clk 0:01:38]}  h6 {[%clk 0:01:59]} 21. f5 {[%clk 0:01:28]}  Nb8 {[%clk 0:01:17]} 22. Bc4 {[%clk 0:00:55]}  Bc6 {[%clk 0:01:03]} 23. Bf7+ {[%clk 0:00:51]}  Kf8 {[%clk 0:01:00]} 24. Bd5 {[%clk 0:00:52]}  Ra7 {[%clk 0:00:54]} 25. Bxc6 {[%clk 0:00:50]}  Qxc6 {[%clk 0:00:54]} 26. c3 {[%clk 0:00:38]}  Qxa4 {[%clk 0:00:53]} 27. Qc4 {[%clk 0:00:39]}  Qe8 {[%clk 0:00:45]} 28. cxb4 {[%clk 0:00:37]}  Nd7 {[%clk 0:00:34]} 29. Na5 {[%clk 0:00:34]}  Nf6 {[%clk 0:00:31]} 30. Nc6 {[%clk 0:00:29]}  Rc7 {[%clk 0:00:30]} 31. Rc1 {[%clk 0:00:30]}  h5 {[%clk 0:00:23]} 32. Qxa6 {[%clk 0:00:26]}  Nxe4 {[%clk 0:00:20]} 33. b5 {[%clk 0:00:25]}  Nc5 {[%clk 0:00:19]} 34. Qa5 {[%clk 0:00:19]}  Qc8 {[%clk 0:00:14]} 35. Nb4 {[%clk 0:00:15]}  Qb7 {[%clk 0:00:12]} 36. b6 {[%clk 0:00:14]}  Rd7 {[%clk 0:00:11]} 37. Rhd1 {[%clk 0:00:11]}  Bd8 {[%clk 0:00:11]} 38. Nd5 {[%clk 0:00:11]}  h4 {[%clk 0:00:11]} 39. Rxc5 {[%clk 0:00:09]}  dxc5 {[%clk 0:00:10]} 40. Qxc5+ {[%clk 0:00:09]}  Be7 {[%clk 0:00:10]} 41. Qb5 {[%clk 0:00:07]}  h3 {[%clk 0:00:08]} 42. a4 {[%clk 0:00:04]}  h2 {[%clk 0:00:08]} 43. a5 {[%clk 0:00:04]}  Rxd5 {[%clk 0:00:07]} 44. Qxd5 {[%clk 0:00:01]}  Qxd5 {[%clk 0:00:06]} 45. Rxd5 {[%clk 0:00:02]}  h1=Q+ {[%clk 0:00:06]} 46. Ka2 {[%clk 0:00:03]}  Qxd5+ {[%clk 0:00:06]} 47. b3 {[%clk 0:00:03]}  Qxa5+ {[%clk 0:00:06]} 48. Kb2 {[%clk 0:00:03]}  Qxb6 {[%clk 0:00:07]} 49. Kc2 {[%clk 0:00:04]}  Qb4 {[%clk 0:00:07]} 50. Kd3 {[%clk 0:00:05]}  Rh3+ {[%clk 0:00:06]} 51. Ke2 {[%clk 0:00:05]}  Qxb3 {[%clk 0:00:06]} 52. Kf1 {[%clk 0:00:06]}  Qc2 {[%clk 0:00:06]} 53. f6 {[%clk 0:00:06]}  Rd3 {[%clk 0:00:06]} 54. fxg7+ {[%clk 0:00:07]}  Kxg7 {[%clk 0:00:06]} 55. Kg1 {[%clk 0:00:07]}  Rd1# {[%clk 0:00:07]} 0-1


[Site "https://www.chess.com"]

[Event "Titled Tuesday Blitz November 14 Late 2023"]
[White "Van Osch, Mees"]
[Black "Ocelak, Jakub"]
[WhiteFideId "1035967"]
[BlackFideId "23707933"]
[WhiteElo "2343"]
[BlackElo "2523"]
[Result "1-0"]
[Round "6"]
[TimeControl "180+1"]
[Date "2023.11.14"]
[WhiteClock "0:01:02"]
[BlackClock "0:00:47"]
[Board "112"]

1. e4 {[%clk 0:02:48]}  d6 {[%clk 0:02:55]} 2. d4 {[%clk 0:02:48]}  Nf6 {[%clk 0:02:54]} 3. Nc3 {[%clk 0:02:48]}  g6 {[%clk 0:02:53]} 4. h4 {[%clk 0:02:47]}  h5 {[%clk 0:02:50]} 5. Bg5 {[%clk 0:02:44]}  Bg7 {[%clk 0:02:49]} 6. Qe2 {[%clk 0:02:43]}  c6 {[%clk 0:02:48]} 7. O-O-O {[%clk 0:02:43]}  Qc7 {[%clk 0:02:44]} 8. g3 {[%clk 0:02:38]}  b5 {[%clk 0:02:42]} 9. Bh3 {[%clk 0:02:36]}  Ba6 {[%clk 0:02:35]} 10. e5 {[%clk 0:02:14]}  b4 {[%clk 0:02:16]} 11. exf6 {[%clk 0:02:14]}  Bxe2 {[%clk 0:02:12]} 12. fxg7 {[%clk 0:02:14]}  Rg8 {[%clk 0:02:11]} 13. Ncxe2 {[%clk 0:02:14]}  Rxg7 {[%clk 0:02:01]} 14. Nf3 {[%clk 0:02:03]}  a5 {[%clk 0:01:59]} 15. Rhe1 {[%clk 0:01:58]}  e6 {[%clk 0:01:40]} 16. Nf4 {[%clk 0:01:42]}  Na6 {[%clk 0:01:30]} 17. Bxe6 {[%clk 0:01:29]}  Kf8 {[%clk 0:01:14]} 18. Bh6 {[%clk 0:01:22]}  Re8 {[%clk 0:01:04]} 19. Bc4 {[%clk 0:01:18]}  Rxe1 {[%clk 0:01:00]} 20. Rxe1 {[%clk 0:01:18]}  Qb6 {[%clk 0:01:00]} 21. Ng5 {[%clk 0:01:08]}  d5 {[%clk 0:00:59]} 22. Nh7+ {[%clk 0:01:05]}  Kg8 {[%clk 0:00:51]} 23. Nf6+ {[%clk 0:01:05]}  Kh8 {[%clk 0:00:51]} 24. Re8+ {[%clk 0:01:03]}  Rg8 {[%clk 0:00:51]} 25. Nxg6+ {[%clk 0:01:01]}  fxg6 {[%clk 0:00:47]} 26. Rxg8# {[%clk 0:01:02]} 1-0


[Site "https://www.chess.com"]

[Event "Titled Tuesday Blitz November 14 Late 2023"]
[White "Reprintsev, Alexander"]
[Black "Li, Hui"]
[WhiteFideId "14100541"]
[BlackFideId "15400310"]
[WhiteElo "2494"]
[BlackElo "2329"]
[Result "0-1"]
[Round "6"]
[TimeControl "180+1"]
[Date "2023.11.14"]
[WhiteClock "0:00:00"]
[BlackClock "0:00:13"]
[Board "113"]

1. e4 {[%clk 0:03:00]}  e5 {[%clk 0:03:00]} 2. Nf3 {[%clk 0:03:00]}  Nf6 {[%clk 0:03:00]} 3. d4 {[%clk 0:02:56]}  exd4 {[%clk 0:03:00]} 4. e5 {[%clk 0:02:55]}  Ne4 {[%clk 0:03:01]} 5. Bd3 {[%clk 0:02:45]}  d5 {[%clk 0:03:02]} 6. exd6 {[%clk 0:02:38]}  Nxd6 {[%clk 0:03:01]} 7. Nxd4 {[%clk 0:02:38]}  Be7 {[%clk 0:03:01]} 8. O-O {[%clk 0:02:32]}  O-O {[%clk 0:03:01]} 9. Nc3 {[%clk 0:02:31]}  Bf6 {[%clk 0:02:58]} 10. Be3 {[%clk 0:02:17]}  c6 {[%clk 0:02:42]} 11. Re1 {[%clk 0:02:01]}  Nd7 {[%clk 0:02:42]} 12. Qf3 {[%clk 0:01:45]}  Ne5 {[%clk 0:02:41]} 13. Qg3 {[%clk 0:01:33]}  Nxd3 {[%clk 0:02:38]} 14. cxd3 {[%clk 0:01:34]}  Nf5 {[%clk 0:02:35]} 15. Nxf5 {[%clk 0:01:32]}  Bxf5 {[%clk 0:02:36]} 16. Rad1 {[%clk 0:01:26]}  Re8 {[%clk 0:02:36]} 17. h3 {[%clk 0:01:17]}  Qd7 {[%clk 0:02:30]} 18. Bg5 {[%clk 0:01:02]}  Bxg5 {[%clk 0:02:25]} 19. Qxg5 {[%clk 0:01:01]}  h6 {[%clk 0:02:15]} 20. Rxe8+ {[%clk 0:00:51]}  Rxe8 {[%clk 0:02:15]} 21. Qg3 {[%clk 0:00:51]}  Rd8 {[%clk 0:02:06]} 22. d4 {[%clk 0:00:49]}  Qd6 {[%clk 0:02:03]} 23. Qe3 {[%clk 0:00:40]}  Be6 {[%clk 0:01:56]} 24. a3 {[%clk 0:00:38]}  a5 {[%clk 0:01:40]} 25. h4 {[%clk 0:00:15]}  Qe7 {[%clk 0:01:38]} 26. g3 {[%clk 0:00:15]}  Qc7 {[%clk 0:01:32]} 27. Kh2 {[%clk 0:00:15]}  Qb6 {[%clk 0:01:24]} 28. Rd2 {[%clk 0:00:14]}  Qb3 {[%clk 0:01:20]} 29. Kg2 {[%clk 0:00:10]}  Qc4 {[%clk 0:01:18]} 30. f3 {[%clk 0:00:09]}  Qb3 {[%clk 0:01:16]} 31. g4 {[%clk 0:00:09]}  Qb6 {[%clk 0:01:10]} 32. Kg3 {[%clk 0:00:09]}  Qc7+ {[%clk 0:01:10]} 33. Qf4 {[%clk 0:00:10]}  Qxf4+ {[%clk 0:01:08]} 34. Kxf4 {[%clk 0:00:10]}  f6 {[%clk 0:01:06]} 35. g5 {[%clk 0:00:09]}  fxg5+ {[%clk 0:01:03]} 36. hxg5 {[%clk 0:00:09]}  Kf7 {[%clk 0:00:44]} 37. gxh6 {[%clk 0:00:09]}  gxh6 {[%clk 0:00:44]} 38. Ke5 {[%clk 0:00:09]}  Bd5 {[%clk 0:00:41]} 39. Nxd5 {[%clk 0:00:08]}  Rxd5+ {[%clk 0:00:41]} 40. Ke4 {[%clk 0:00:09]}  Rg5 {[%clk 0:00:35]} 41. Rh2 {[%clk 0:00:08]}  Kg6 {[%clk 0:00:31]} 42. f4 {[%clk 0:00:08]}  Rg1 {[%clk 0:00:31]} 43. f5+ {[%clk 0:00:08]}  Kg7 {[%clk 0:00:31]} 44. Ke5 {[%clk 0:00:07]}  Re1+ {[%clk 0:00:29]} 45. Kd6 {[%clk 0:00:08]}  Rd1 {[%clk 0:00:28]} 46. Rh4 {[%clk 0:00:08]}  Rd2 {[%clk 0:00:26]} 47. Rg4+ {[%clk 0:00:03]}  Kf7 {[%clk 0:00:25]} 48. Rg6 {[%clk 0:00:03]}  Rxd4+ {[%clk 0:00:20]} 49. Ke5 {[%clk 0:00:02]}  Rd5+ {[%clk 0:00:20]} 50. Ke4 {[%clk 0:00:02]}  Rb5 {[%clk 0:00:15]} 51. Rxh6 {[%clk 0:00:02]}  Rxb2 {[%clk 0:00:16]} 52. Rh7+ {[%clk 0:00:02]}  Kf6 {[%clk 0:00:16]} 53. Rh6+ {[%clk 0:00:03]}  Kg7 {[%clk 0:00:15]} 54. Rg6+ {[%clk 0:00:03]}  Kf7 {[%clk 0:00:15]} 55. Rd6 {[%clk 0:00:00]}  Rb3 {[%clk 0:00:13]} 0-1


[Site "https://www.chess.com"]

[Event "Titled Tuesday Blitz November 14 Late 2023"]
[White "Sreyas Payyappat"]
[Black "Romero Ruscalleda, Josep"]
[WhiteFideId "46674969"]
[BlackFideId "2231859"]
[WhiteElo "2483"]
[BlackElo "2320"]
[Result "0-1"]
[Round "6"]
[TimeControl "180+1"]
[Date "2023.11.14"]
[WhiteClock "0:00:21"]
[BlackClock "0:00:28"]
[Board "114"]

1. e4 {[%clk 0:03:00]}  g6 {[%clk 0:03:00]} 2. d4 {[%clk 0:02:59]}  Bg7 {[%clk 0:03:01]} 3. Nc3 {[%clk 0:02:58]}  d6 {[%clk 0:03:01]} 4. Nf3 {[%clk 0:02:58]}  a6 {[%clk 0:03:01]} 5. Bc4 {[%clk 0:02:55]}  Nf6 {[%clk 0:03:00]} 6. O-O {[%clk 0:02:55]}  O-O {[%clk 0:03:00]} 7. Bg5 {[%clk 0:02:53]}  Nxe4 {[%clk 0:02:58]} 8. Nxe4 {[%clk 0:02:51]}  d5 {[%clk 0:02:58]} 9. Re1 {[%clk 0:02:45]}  dxc4 {[%clk 0:02:55]} 10. Ned2 {[%clk 0:02:42]}  Be6 {[%clk 0:02:50]} 11. c3 {[%clk 0:02:39]}  c6 {[%clk 0:02:45]} 12. Nf1 {[%clk 0:02:30]}  Nd7 {[%clk 0:02:40]} 13. Re2 {[%clk 0:02:23]}  Nf6 {[%clk 0:02:37]} 14. Qe1 {[%clk 0:02:20]}  Re8 {[%clk 0:02:34]} 15. Rxe6 {[%clk 0:02:16]}  fxe6 {[%clk 0:02:33]} 16. Qxe6+ {[%clk 0:02:17]}  Kh8 {[%clk 0:02:33]} 17. Ne5 {[%clk 0:02:15]}  Qd5 {[%clk 0:02:02]} 18. Qh3 {[%clk 0:01:51]}  Kg8 {[%clk 0:01:52]} 19. Ne3 {[%clk 0:01:50]}  Qd6 {[%clk 0:01:19]} 20. N3xc4 {[%clk 0:01:46]}  Qd5 {[%clk 0:01:19]} 21. Nb6 {[%clk 0:01:37]}  Qd6 {[%clk 0:01:16]} 22. Nec4 {[%clk 0:01:34]}  Qc7 {[%clk 0:01:07]} 23. Qe6+ {[%clk 0:01:30]}  Kh8 {[%clk 0:01:06]} 24. Ne5 {[%clk 0:01:23]}  h6 {[%clk 0:01:06]} 25. Nxa8 {[%clk 0:01:12]}  Rxa8 {[%clk 0:01:01]} 26. Nxg6+ {[%clk 0:00:48]}  Kh7 {[%clk 0:01:01]} 27. Nxe7 {[%clk 0:00:41]}  hxg5 {[%clk 0:00:58]} 28. Qf5+ {[%clk 0:00:39]}  Kh8 {[%clk 0:00:56]} 29. Qh3+ {[%clk 0:00:38]}  Nh7 {[%clk 0:00:56]} 30. Qe6 {[%clk 0:00:27]}  Bf6 {[%clk 0:00:52]} 31. Re1 {[%clk 0:00:21]}  Bxe7 {[%clk 0:00:46]} 32. Qxe7 {[%clk 0:00:22]}  Qxe7 {[%clk 0:00:46]} 33. Rxe7 {[%clk 0:00:23]}  Rb8 {[%clk 0:00:44]} 34. g3 {[%clk 0:00:22]}  Kg8 {[%clk 0:00:43]} 35. Kg2 {[%clk 0:00:19]}  Nf6 {[%clk 0:00:39]} 36. Kf3 {[%clk 0:00:19]}  Kf8 {[%clk 0:00:37]} 37. Rc7 {[%clk 0:00:17]}  Nd5 {[%clk 0:00:35]} 38. Rh7 {[%clk 0:00:16]}  Kg8 {[%clk 0:00:34]} 39. Rh5 {[%clk 0:00:15]}  Rf8+ {[%clk 0:00:34]} 40. Kg2 {[%clk 0:00:14]}  Rf5 {[%clk 0:00:33]} 41. g4 {[%clk 0:00:13]}  Nf4+ {[%clk 0:00:33]} 42. Kg1 {[%clk 0:00:14]}  Nxh5 {[%clk 0:00:32]} 43. gxf5 {[%clk 0:00:15]}  Kf7 {[%clk 0:00:32]} 44. Kg2 {[%clk 0:00:15]}  Kf6 {[%clk 0:00:32]} 45. c4 {[%clk 0:00:15]}  Kxf5 {[%clk 0:00:31]} 46. Kf3 {[%clk 0:00:16]}  Nf4 {[%clk 0:00:31]} 47. Ke3 {[%clk 0:00:16]}  Ng2+ {[%clk 0:00:30]} 48. Kf3 {[%clk 0:00:16]}  Ne1+ {[%clk 0:00:30]} 49. Ke2 {[%clk 0:00:16]}  Nc2 {[%clk 0:00:30]} 50. Kd3 {[%clk 0:00:15]}  Nb4+ {[%clk 0:00:30]} 51. Kc3 {[%clk 0:00:16]}  Nxa2+ {[%clk 0:00:30]} 52. Kb3 {[%clk 0:00:16]}  Nc1+ {[%clk 0:00:30]} 53. Kb4 {[%clk 0:00:17]}  Ke6 {[%clk 0:00:29]} 54. Kc5 {[%clk 0:00:17]}  Kd7 {[%clk 0:00:29]} 55. d5 {[%clk 0:00:16]}  cxd5 {[%clk 0:00:28]} 56. Kxd5 {[%clk 0:00:17]}  Nd3 {[%clk 0:00:28]} 57. b3 {[%clk 0:00:16]}  Nxf2 {[%clk 0:00:28]} 58. Ke5 {[%clk 0:00:15]}  Ng4+ {[%clk 0:00:28]} 59. Kf5 {[%clk 0:00:14]}  Nxh2 {[%clk 0:00:28]} 60. Kxg5 {[%clk 0:00:15]}  Kc6 {[%clk 0:00:29]} 61. Kf5 {[%clk 0:00:16]}  Kc5 {[%clk 0:00:29]} 62. Ke5 {[%clk 0:00:17]}  Nf3+ {[%clk 0:00:29]} 63. Ke6 {[%clk 0:00:17]}  Nd2 {[%clk 0:00:29]} 64. Kd7 {[%clk 0:00:18]}  Nxb3 {[%clk 0:00:29]} 65. Kc7 {[%clk 0:00:19]}  b6 {[%clk 0:00:29]} 66. Kb7 {[%clk 0:00:20]}  a5 {[%clk 0:00:28]} 67. Ka6 {[%clk 0:00:21]} 0-1


[Site "https://www.chess.com"]

[Event "Titled Tuesday Blitz November 14 Late 2023"]
[White "Urbina Perez, Juan Antonio"]
[Black "rikchessmx"]
[WhiteFideId "2217368"]
[WhiteElo "2482"]
[BlackElo "2324"]
[Result "1-0"]
[Round "6"]
[TimeControl "180+1"]
[Date "2023.11.14"]
[WhiteClock "0:01:34"]
[BlackClock "0:01:29"]
[Board "115"]

1. d4 {[%clk 0:03:00]}  Nf6 {[%clk 0:02:51]} 2. c4 {[%clk 0:03:01]}  e6 {[%clk 0:02:51]} 3. Nf3 {[%clk 0:03:01]}  d5 {[%clk 0:02:51]} 4. g3 {[%clk 0:03:01]}  c6 {[%clk 0:02:51]} 5. Bg2 {[%clk 0:03:00]}  dxc4 {[%clk 0:02:48]} 6. O-O {[%clk 0:02:57]}  b5 {[%clk 0:02:47]} 7. Ne5 {[%clk 0:02:51]}  Nd5 {[%clk 0:02:47]} 8. Qc2 {[%clk 0:02:48]}  Bb7 {[%clk 0:02:43]} 9. Nd2 {[%clk 0:02:48]}  Nd7 {[%clk 0:02:41]} 10. Nxd7 {[%clk 0:02:44]}  Qxd7 {[%clk 0:02:41]} 11. b3 {[%clk 0:02:44]}  c3 {[%clk 0:02:38]} 12. Ne4 {[%clk 0:02:42]}  b4 {[%clk 0:02:38]} 13. a3 {[%clk 0:02:40]}  a5 {[%clk 0:02:38]} 14. axb4 {[%clk 0:02:38]}  Bxb4 {[%clk 0:02:38]} 15. Nc5 {[%clk 0:02:31]}  Bxc5 {[%clk 0:02:34]} 16. dxc5 {[%clk 0:02:31]}  O-O {[%clk 0:02:33]} 17. Rd1 {[%clk 0:02:27]}  Qe7 {[%clk 0:02:33]} 18. e4 {[%clk 0:02:27]}  Nb4 {[%clk 0:02:27]} 19. Qxc3 {[%clk 0:02:27]}  Rfd8 {[%clk 0:02:25]} 20. Bf4 {[%clk 0:02:26]}  Rxd1+ {[%clk 0:02:17]} 21. Rxd1 {[%clk 0:02:26]}  f6 {[%clk 0:02:15]} 22. Bd6 {[%clk 0:02:24]}  Qd7 {[%clk 0:02:14]} 23. Bh3 {[%clk 0:02:16]}  Re8 {[%clk 0:02:05]} 24. Ra1 {[%clk 0:02:15]}  Ra8 {[%clk 0:02:02]} 25. Qc4 {[%clk 0:02:13]}  Kf7 {[%clk 0:02:00]} 26. f4 {[%clk 0:02:05]}  Ba6 {[%clk 0:02:00]} 27. Qc3 {[%clk 0:01:56]}  Bd3 {[%clk 0:01:54]} 28. f5 {[%clk 0:01:42]}  e5 {[%clk 0:01:44]} 29. Qxb4 {[%clk 0:01:41]}  axb4 {[%clk 0:01:42]} 30. Rxa8 {[%clk 0:01:40]}  g6 {[%clk 0:01:36]} 31. fxg6+ {[%clk 0:01:40]}  Kxg6 {[%clk 0:01:33]} 32. Bxd7 {[%clk 0:01:39]}  Bxe4 {[%clk 0:01:29]} 33. Rg8+ {[%clk 0:01:34]} 1-0


[Site "https://www.chess.com"]

[Event "Titled Tuesday Blitz November 14 Late 2023"]
[White "Cooper, Aaron"]
[Black "Martin Barcelo, Carles"]
[WhiteFideId "2634945"]
[BlackFideId "24561444"]
[WhiteElo "2287"]
[BlackElo "2462"]
[Result "1-0"]
[Round "6"]
[TimeControl "180+1"]
[Date "2023.11.14"]
[WhiteClock "0:02:16"]
[BlackClock "0:02:22"]
[Board "116"]

1. b4 {[%clk 0:03:00]}  a5 {[%clk 0:02:55]} 2. b5 {[%clk 0:03:00]}  Nf6 {[%clk 0:02:54]} 3. Bb2 {[%clk 0:03:00]}  d5 {[%clk 0:02:53]} 4. e3 {[%clk 0:02:59]}  Bf5 {[%clk 0:02:52]} 5. c4 {[%clk 0:02:59]}  e6 {[%clk 0:02:52]} 6. Nf3 {[%clk 0:02:59]}  h6 {[%clk 0:02:52]} 7. Nc3 {[%clk 0:02:59]}  c5 {[%clk 0:02:51]} 8. d4 {[%clk 0:02:57]}  Nbd7 {[%clk 0:02:49]} 9. cxd5 {[%clk 0:02:56]}  exd5 {[%clk 0:02:49]} 10. dxc5 {[%clk 0:02:49]}  Nxc5 {[%clk 0:02:50]} 11. Be2 {[%clk 0:02:49]}  Be7 {[%clk 0:02:46]} 12. O-O {[%clk 0:02:48]}  O-O {[%clk 0:02:47]} 13. Nd4 {[%clk 0:02:48]}  Bd7 {[%clk 0:02:46]} 14. Rc1 {[%clk 0:02:44]}  Rc8 {[%clk 0:02:46]} 15. Bf3 {[%clk 0:02:42]}  Nce4 {[%clk 0:02:44]} 16. Nxd5 {[%clk 0:02:28]}  Nxd5 {[%clk 0:02:33]} 17. Bxe4 {[%clk 0:02:27]}  Nb4 {[%clk 0:02:33]} 18. Bb1 {[%clk 0:02:23]}  Bf6 {[%clk 0:02:24]} 19. a3 {[%clk 0:02:22]}  Nd5 {[%clk 0:02:24]} 20. Qd3 {[%clk 0:02:18]}  Qe7 {[%clk 0:02:22]} 21. Qh7# {[%clk 0:02:16]} 1-0


[Site "https://www.chess.com"]

[Event "Titled Tuesday Blitz November 14 Late 2023"]
[White "Novikova, Margarita"]
[Black "Figorito, Nick"]
[WhiteFideId "14109689"]
[BlackFideId "30923689"]
[WhiteElo "2171"]
[BlackElo "2402"]
[Result "1/2-1/2"]
[Round "6"]
[TimeControl "180+1"]
[Date "2023.11.14"]
[WhiteClock "0:01:11"]
[BlackClock "0:00:45"]
[Board "118"]

1. e4 {[%clk 0:02:59]}  e6 {[%clk 0:02:59]} 2. d4 {[%clk 0:02:59]}  d5 {[%clk 0:03:00]} 3. exd5 {[%clk 0:03:00]}  exd5 {[%clk 0:03:01]} 4. Bd3 {[%clk 0:03:00]}  Bd6 {[%clk 0:03:01]} 5. Nf3 {[%clk 0:03:00]}  Ne7 {[%clk 0:03:01]} 6. O-O {[%clk 0:03:01]}  O-O {[%clk 0:03:01]} 7. Ne5 {[%clk 0:02:59]}  c5 {[%clk 0:02:59]} 8. c3 {[%clk 0:02:59]}  cxd4 {[%clk 0:02:59]} 9. cxd4 {[%clk 0:02:59]}  Nbc6 {[%clk 0:03:00]} 10. Nxc6 {[%clk 0:02:44]}  bxc6 {[%clk 0:03:01]} 11. Nc3 {[%clk 0:02:41]}  Bf5 {[%clk 0:03:00]} 12. Bg5 {[%clk 0:02:39]}  f6 {[%clk 0:02:59]} 13. Bh4 {[%clk 0:02:38]}  Qb6 {[%clk 0:02:47]} 14. Re1 {[%clk 0:02:23]}  Bxd3 {[%clk 0:02:35]} 15. Qxd3 {[%clk 0:02:21]}  Qxb2 {[%clk 0:02:27]} 16. Reb1 {[%clk 0:02:13]}  Qa3 {[%clk 0:02:23]} 17. Bg3 {[%clk 0:02:02]}  Bxg3 {[%clk 0:02:20]} 18. hxg3 {[%clk 0:02:02]}  Rab8 {[%clk 0:02:08]} 19. Qe3 {[%clk 0:01:58]}  Qd6 {[%clk 0:02:07]} 20. Na4 {[%clk 0:01:52]}  Nf5 {[%clk 0:01:59]} 21. Qd3 {[%clk 0:01:51]}  Nh6 {[%clk 0:01:49]} 22. Nc5 {[%clk 0:01:50]}  Rxb1+ {[%clk 0:01:45]} 23. Rxb1 {[%clk 0:01:50]}  Rb8 {[%clk 0:01:46]} 24. Rb3 {[%clk 0:01:47]}  Nf7 {[%clk 0:01:36]} 25. Qa6 {[%clk 0:01:39]}  Rxb3 {[%clk 0:01:33]} 26. axb3 {[%clk 0:01:39]}  Qc7 {[%clk 0:01:28]} 27. b4 {[%clk 0:01:37]}  Nd8 {[%clk 0:01:20]} 28. Qe2 {[%clk 0:01:34]}  Qf7 {[%clk 0:01:02]} 29. Qg4 {[%clk 0:01:11]}  Qc7 {[%clk 0:00:45]} 1/2-1/2


[Site "https://www.chess.com"]